bitfinex/quotes_BTCUSD_20260125
["timestamp","ask_amount","ask_price","bid_price","bid_amount"]
[1769374975958,1.089102,86754.0,86738.0,0.29497224]
[1769374976105,1.089102,86754.0,86739.0,0.29497224]
[1769374976290,0.30064564,86758.0,86740.0,1.41828552]
[1769374976474,1.38974764,86758.0,86740.0,1.41828552]
[1769374977301,1.089102,86757.0,86740.0,1.41828552]
[1769374977507,0.17704,86763.0,86737.0,0.00030095]
[1769374977508,0.01152671,86755.0,86737.0,0.00030095]
[1769374977706,1.089102,86753.0,86737.0,0.00030095]
[1769374980047,1.089102,86753.0,86737.0,0.29527319]
[1769374981077,0.01152711,86752.0,86737.0,0.29527319]
[1769374981284,1.089102,86751.0,86737.0,0.00030095]
[1769374981488,1.10062924,86751.0,86737.0,0.00030095]
[1769374981693,0.01152751,86749.0,86737.0,0.00030095]
[1769374982012,0.01152751,86749.0,86726.0,0.07553738]
[1769374982013,0.01152737,86750.0,86721.0,0.47205224]
[1769374982014,0.00955766,86736.0,86721.0,0.47205224]
[1769374982230,1.09877372,86736.0,86721.0,0.47205224]
[1769374982394,0.00967172,86736.0,86722.0,1.12331328]
[1769374982595,0.00011406,86736.0,86724.0,0.29497224]
[1769374984163,0.00011406,86736.0,86719.0,1.0894313]
[1769374984364,1.08467751,86732.0,86718.0,0.0003101]
[1769374984589,1.142327,86732.0,86718.0,0.0003101]
[1769374984737,0.01153016,86729.0,86718.0,0.0003101]
[1769374985124,0.29560615,86727.0,86712.0,1e-08]
[1769374985328,1.07314775,86719.0,86712.0,1e-08]
[1769374985545,0.01153136,86720.0,86712.0,1e-08]
[1769374985546,1.07314775,86714.0,86712.0,1e-08]
[1769374985766,0.35326763,86713.0,86712.0,1e-08]
[1769374986117,1.07314775,86701.0,86684.0,1.0894313]
[1769374986260,0.01153349,86704.0,86687.0,1.0894313]
[1769374986261,0.17708,86703.0,86687.0,1.0894313]
[1769374986462,0.17708,86703.0,86681.0,0.0003101]
[1769374986463,1.07314775,86702.0,86688.0,0.31053666]
[1769374986669,1.07314775,86702.0,86681.0,1.0897414]
[1769374986670,1.07314775,86702.0,86683.0,0.31053666]
[1769374986873,0.17708,86703.0,86683.0,0.31053666]
[1769374986874,0.01153455,86696.0,86683.0,0.31053666]
[1769374987055,0.17708,86703.0,86681.0,0.0003101]
[1769374987056,1.07314775,86694.0,86681.0,0.0003101]
[1769374987395,1.07314775,86694.0,86681.0,0.00078108]
[1769374987396,0.01153508,86692.0,86681.0,0.00078108]
[1769374987549,0.43542363,86700.0,86681.0,0.00078108]
[1769374987550,1.07314775,86688.0,86681.0,0.00078108]
[1769374987754,1.07314775,86687.0,86681.0,0.00078108]
[1769374988398,0.01153495,86693.0,86681.0,0.00078108]
[1769374988399,0.01153336,86705.0,86681.0,0.00078108]
[1769374988593,1.07314775,86700.0,86682.0,0.31053666]
[1769374988998,0.43542363,86710.0,86681.0,0.00078108]
[1769374988999,1.07314775,86715.0,86681.0,0.00078108]
[1769374989199,0.01153083,86724.0,86681.0,0.00078108]
[1769374989200,0.020736,86740.0,86725.0,0.0115307]
[1769374989401,0.0003101,86746.0,86720.0,0.43542363]
[1769374989402,0.01152844,86742.0,86720.0,0.43542363]
[1769374989649,0.01152844,86742.0,86717.0,0.32206842]
[1769374989650,0.29560615,86742.0,86717.0,0.32206842]
[1769374989791,1.08467658,86739.0,86717.0,0.31053666]
[1769374989997,1.07314775,86736.0,86717.0,0.31053666]
[1769374990214,0.01324869,86738.0,86719.0,0.31053666]
[1769374990215,0.17712,86735.0,86719.0,0.31053666]
[1769374990446,0.17726134,86735.0,86720.0,0.31053666]
[1769374991346,0.17726134,86735.0,86721.0,1.41149919]
[1769374991595,0.17726134,86735.0,86716.0,0.05765923]
[1769374991597,0.29560615,86764.0,86743.0,1.0894313]
[1769374991769,0.29560615,86764.0,86742.0,0.01152844]
[1769374991770,0.05090118,86763.0,86744.0,0.3103794]
[1769374991975,0.05090118,86763.0,86744.0,0.31006492]
[1769374992132,0.00014147,86764.0,86752.0,0.01152711]
[1769374992361,0.0003101,86765.0,86752.0,0.01152711]
[1769374992362,0.0003101,86765.0,86755.0,0.31053666]
[1769374992542,0.0003101,86765.0,86755.0,0.31067813]
[1769374992742,0.0003101,86765.0,86755.0,0.00014147]
[1769374993435,0.0001668,86766.0,86755.0,0.00014147]
[1769374995098,0.0001668,86766.0,86743.0,0.0115283]
[1769374995099,0.01152299,86783.0,86757.0,0.01152644]
[1769374995303,0.01152325,86781.0,86755.0,0.05763346]
[1769374995512,0.17712,86782.0,86761.0,0.31053666]
[1769374995714,0.18864312,86782.0,86761.0,0.31053666]
[1769374995967,0.01152352,86779.0,86761.0,0.31053666]
[1769374996160,0.18864312,86782.0,86761.0,0.31053666]
[1769374996409,0.01152352,86779.0,86761.0,0.31053666]
[1769374996616,0.18864365,86778.0,86761.0,0.31053666]
[1769374996761,0.01152379,86777.0,86761.0,0.31053666]
[1769374996964,0.18864365,86778.0,86761.0,0.31053666]
[1769374997367,0.17712,86778.0,86761.0,0.31053666]
[1769374997597,0.18864365,86778.0,86761.0,0.31053666]
[1769374997758,0.01152392,86776.0,86761.0,0.31053666]
[1769374997979,0.01152339,86780.0,86753.0,0.01152697]
[1769374997980,0.0002,86808.0,86785.0,0.01152272]
[1769374998213,0.00067148,86808.0,86786.0,1.09019376]
[1769374998424,0.00067148,86808.0,86792.0,0.01152179]
[1769374998636,0.00067148,86808.0,86788.0,0.32405227]
[1769374998829,0.05090118,86803.0,86788.0,0.31252994]
[1769374999038,0.00067148,86808.0,86788.0,0.31252994]
[1769374999239,0.05090118,86805.0,86788.0,0.31252994]
[1769374999662,0.0115202,86804.0,86788.0,0.31252994]
[1769374999853,0.06242125,86805.0,86788.0,0.31252994]
[1769374999854,0.01152087,86799.0,86788.0,0.31252994]
[1769375000062,0.01152007,86805.0,86782.0,1.4027237]
[1769375000260,0.01152087,86799.0,86782.0,0.31252994]
[1769375000459,0.01152073,86800.0,86782.0,0.31252994]
[1769375000683,0.01152087,86799.0,86782.0,0.31252994]
[1769375000886,0.011521,86798.0,86782.0,0.31252994]
[1769375001082,0.01152087,86799.0,86782.0,0.31252994]
[1769375001296,0.01152073,86800.0,86782.0,0.31252994]
[1769375001491,0.01152153,86794.0,86775.0,1.09019376]
[1769375001655,0.01152113,86797.0,86775.0,1.09019376]
[1769375001851,0.01152126,86796.0,86775.0,1.4027237]
[1769375002104,0.01152126,86796.0,86775.0,1.09019376]
[1769375002313,0.01152126,86796.0,86776.0,0.31252994]
[1769375002509,0.011521,86798.0,86776.0,0.31252994]
[1769375002723,1.1584024,86799.0,86776.0,0.31252994]
[1769375002724,0.01152087,86799.0,86776.0,0.31252994]
[1769375002892,0.17708,86800.0,86780.0,0.31252994]
[1769375003662,0.17708,86800.0,86780.0,1.4027237]
[1769375003880,0.17708,86800.0,86781.0,0.31252994]
[1769375004044,0.17448134,86800.0,86781.0,0.32405319]
[1769375004369,0.17448134,86800.0,86781.0,0.31252994]
[1769375004569,0.17448134,86800.0,86781.0,0.32405319]
[1769375005228,0.17448134,86800.0,86781.0,0.31252994]
[1769375006000,1.1584024,86799.0,86781.0,0.32405319]
[1769375006367,0.17448134,86800.0,86781.0,0.31252994]
[1769375006788,0.01152193,86791.0,86781.0,0.31252994]
[1769375006988,0.30628311,86797.0,86749.0,0.34582284]
[1769375007233,1.1584024,86795.0,86775.0,0.31252994]
[1769375007411,0.01152126,86796.0,86775.0,0.31252994]
[1769375007412,0.01152153,86794.0,86776.0,0.00117414]
[1769375007610,0.01152166,86793.0,86776.0,0.00117414]
[1769375008200,0.01152272,86785.0,86763.0,0.31252994]
[1769375008561,1.1584024,86783.0,86763.0,0.31252994]
[1769375008759,1.16992539,86783.0,86763.0,1.4027237]
[1769375008975,1.1584024,86783.0,86764.0,1.09019376]
[1769375009192,0.01152379,86777.0,86759.0,0.17704]
[1769375009400,0.01152352,86779.0,86759.0,0.17704]
[1769375009624,0.0002,86808.0,86759.0,0.17704]
[1769375009625,0.30628311,86801.0,86779.0,0.31267141]
[1769375009804,0.0002,86808.0,86788.0,0.01152233]
[1769375010117,0.0002,86808.0,86790.0,1.09019376]
[1769375010446,0.00067148,86808.0,86790.0,1.09019376]
[1769375010645,0.01219115,86808.0,86790.0,1.09019376]
[1769375010849,0.00067148,86808.0,86790.0,1.09019376]
[1769375011048,0.01219115,86808.0,86790.0,1.09019376]
[1769375011250,0.00067148,86808.0,86790.0,1.09019376]
[1769375011510,0.00067148,86808.0,86785.0,0.06913632]
[1769375011511,0.00067148,86808.0,86793.0,1.09019376]
[1769375012463,1.1584024,86807.0,86784.0,0.3240528]
[1769375012664,1.1584024,86807.0,86788.0,0.01152233]
[1769375013024,0.0001,86814.0,86787.0,0.01152246]
[1769375013025,0.0001,86814.0,86807.0,0.00014147]
[1769375013321,0.33957152,86829.0,86804.0,1.09834356]
[1769375013322,1.10912075,86825.0,86804.0,1.09834356]
[1769375013518,0.01151755,86824.0,86804.0,1.41986364]
[1769375013773,0.01151755,86824.0,86804.0,0.32152008]
[1769375013893,0.00971716,86804.0,86799.0,0.01152087]
[1769375014097,0.00971716,86804.0,86800.0,0.01152073]
[1769375014297,0.32805464,86823.0,86801.0,1.43124288]
[1769375014506,0.32805464,86823.0,86802.0,1.09834356]
[1769375014708,0.33957232,86823.0,86802.0,1.09834356]
[1769375014917,0.33957232,86823.0,86802.0,1.41972228]
[1769375015127,0.01151781,86822.0,86802.0,1.41972228]
[1769375015333,0.32805464,86823.0,86802.0,1.41972228]
[1769375015845,0.33957232,86823.0,86802.0,1.41972228]
[1769375016105,0.32805464,86823.0,86802.0,1.41972228]
[1769375016245,0.05758446,86829.0,86802.0,1.41972228]
[1769375016246,0.23027889,86852.0,86802.0,0.32137872]
[1769375016434,0.23027889,86852.0,86799.0,0.00047148]
[1769375016435,0.01151556,86839.0,86816.0,0.33289733]
[1769375016635,0.01193063,86840.0,86815.0,1.09875876]
[1769375016636,0.0004152,86840.0,86825.0,0.01151742]
[1769375016832,0.0004152,86840.0,86827.0,0.32137872]
[1769375017397,0.0004152,86840.0,86828.0,0.01151702]
[1769375017592,0.0004152,86840.0,86830.0,0.32137872]
[1769375017892,0.0004152,86840.0,86831.0,0.32137872]
[1769375018100,0.00055656,86840.0,86831.0,0.32137872]
[1769375018479,9.999e-05,86831.0,86820.0,0.32137872]
[1769375018727,9.999e-05,86831.0,86820.0,0.32152008]
[1769375018883,9.999e-05,86831.0,86820.0,1.43138172]
[1769375019092,1.10912075,86841.0,86820.0,1.43138172]
[1769375019300,1.10912075,86841.0,86820.0,1.41986364]
[1769375019478,0.32805464,86844.0,86821.0,1.09834356]
[1769375019479,1.44869029,86844.0,86821.0,1.09834356]
[1769375019686,1.10912075,86843.0,86822.0,0.01151781]
[1769375019887,1.10912075,86843.0,86823.0,0.01151768]
[1769375020085,1.10912075,86843.0,86821.0,1.10986151]
[1769375020086,1.10912075,86843.0,86824.0,0.01151755]
[1769375020324,1.10912075,86843.0,86823.0,0.01151768]
[1769375020473,1.10912075,86843.0,86824.0,0.01151755]
[1769375020686,1.10912075,86843.0,86821.0,1.10986151]
[1769375020889,1.10912075,86843.0,86822.0,0.01151781]
[1769375021088,0.32805464,86844.0,86823.0,0.01151768]
[1769375021328,0.32805464,86844.0,86823.0,0.3328964]
[1769375021534,1.43717539,86844.0,86823.0,0.32137872]
[1769375021744,0.01151503,86843.0,86823.0,0.32137872]
[1769375022068,0.01151383,86852.0,86823.0,0.32137872]
[1769375022221,0.06908474,86850.0,86827.0,1.09834356]
[1769375022420,0.0115141,86850.0,86830.0,0.32137872]
[1769375022589,0.0115141,86850.0,86830.0,1.41972228]
[1769375022590,0.01151436,86848.0,86830.0,1.41972228]
[1769375022790,0.01151423,86849.0,86830.0,1.41972228]
[1769375023088,0.01151423,86849.0,86823.0,0.01151768]
[1769375023089,1.10912075,86844.0,86823.0,0.01151768]
[1769375023289,1.10912075,86842.0,86823.0,0.00025265]
[1769375023688,0.01151556,86839.0,86823.0,0.00025265]
[1769375023926,1.10912075,86838.0,86823.0,0.00025265]
[1769375024129,1.10912075,86838.0,86822.0,0.32137872]
[1769375024997,1.10912075,86834.0,86820.0,0.00014136]
[1769375025194,0.01151582,86837.0,86820.0,0.00014136]
[1769375025195,0.32805464,86832.0,86820.0,0.00014136]
[1769375025400,1.10912075,86826.0,86820.0,0.00014136]
[1769375025600,1.10912075,86825.0,86806.0,0.32137872]
[1769375025817,1.109262,86825.0,86806.0,0.33289866]
[1769375026070,1.109262,86825.0,86806.0,1.41972228]
[1769375026215,1.109262,86825.0,86806.0,1.43124222]
[1769375026422,0.00014125,86825.0,86809.0,0.32137872]
[1769375026648,0.00014125,86825.0,86810.0,1.41972228]
[1769375026805,0.00014125,86825.0,86811.0,0.32137872]
[1769375027006,0.00014125,86825.0,86807.0,0.0115198]
[1769375027007,0.32805464,86848.0,86830.0,0.01151675]
[1769375027207,0.01151357,86854.0,86831.0,0.32137872]
[1769375027429,0.01337465,86854.0,86831.0,0.32137872]
[1769375027647,0.01151383,86852.0,86832.0,1.09834356]
[1769375027849,1.10912075,86851.0,86832.0,1.09834356]
[1769375028046,1.12063472,86851.0,86832.0,1.09834356]
[1769375028248,0.0115141,86850.0,86830.0,0.32137872]
[1769375028452,1.10912075,86851.0,86830.0,0.32137872]
[1769375028818,0.01151463,86846.0,86827.0,1.09834356]
[1769375028986,0.32805464,86844.0,86823.0,0.01151768]
[1769375029184,0.32805464,86844.0,86820.0,0.05758987]
[1769375029185,1.10912075,86843.0,86822.0,0.01151781]
[1769375029545,1.10912075,86843.0,86818.0,1.09834356]
[1769375029753,0.32805464,86844.0,86816.0,0.05759251]
[1769375029754,0.32805464,86840.0,86816.0,0.05759251]
[1769375029950,0.66588514,86850.0,86814.0,0.32137872]
[1769375029951,0.32805464,86838.0,86814.0,0.32137872]
[1769375030167,0.32805464,86834.0,86814.0,0.32137872]
[1769375030369,0.01151649,86832.0,86808.0,0.01151967]
[1769375030568,0.01151675,86830.0,86807.0,0.32137872]
[1769375030768,0.48650341,86840.0,86807.0,0.32137872]
[1769375030769,0.32805464,86828.0,86807.0,0.33289852]
[1769375030968,0.32805464,86828.0,86809.0,0.01151954]
[1769375030969,1.10912075,86827.0,86809.0,0.01151954]
[1769375031393,1.10912075,86827.0,86810.0,0.01151941]
[1769375031566,1.10912075,86827.0,86811.0,0.01151927]
[1769375031786,1.10912075,86827.0,86812.0,0.01151914]
[1769375032168,1.10912075,86827.0,86812.0,0.01166039]
[1769375032383,0.01151582,86837.0,86812.0,0.01166039]
[1769375032793,0.32805464,86835.0,86814.0,0.01151887]
[1769375033038,1.43717539,86835.0,86814.0,1.10986243]
[1769375033243,1.10912075,86834.0,86815.0,0.01151874]
[1769375033400,1.10912075,86834.0,86816.0,0.01151861]
[1769375033602,1.10912075,86834.0,86814.0,0.01151887]
[1769375034643,1.10912075,86834.0,86815.0,0.05759373]
[1769375034826,0.05757527,86843.0,86815.0,0.05759373]
[1769375034827,0.01151543,86840.0,86816.0,0.33289733]
[1769375034995,0.01151569,86838.0,86816.0,0.32137872]
[1769375035196,1.12063631,86839.0,86816.0,0.33289733]
[1769375035433,0.3395702,86839.0,86816.0,0.33289733]
[1769375035678,1.12063657,86837.0,86816.0,0.32137872]
[1769375035855,1.10912075,86837.0,86816.0,0.32137872]
[1769375036060,0.18843516,86842.0,86819.0,0.01151821]
[1769375036261,1.10912075,86841.0,86820.0,0.01151808]
[1769375036469,1.10912075,86841.0,86812.0,0.00014125]
[1769375036470,0.09148449,86859.0,86824.0,1.09834356]
[1769375036740,1.10912075,86880.0,86812.0,0.00014125]
[1769375036741,0.01151171,86868.0,86846.0,1.09834356]
[1769375036953,1.10912075,86869.0,86847.0,0.33289322]
[1769375037156,1.10912075,86869.0,86848.0,0.01151436]
[1769375037366,0.05755479,86874.0,86850.0,0.0115141]
[1769375037367,0.32805464,86874.0,86850.0,0.0115141]
[1769375037698,1.10912075,86873.0,86850.0,0.0115141]
[1769375037863,1.12077319,86873.0,86850.0,0.0115141]
[1769375038039,0.01151118,86872.0,86849.0,0.01151423]
[1769375038255,0.01151052,86877.0,86848.0,0.0690862]
[1769375038256,0.01150867,86891.0,86872.0,0.00990001]
[1769375038455,0.0004,86917.0,86872.0,0.00990001]
[1769375038456,0.0115088,86890.0,86872.0,0.00990001]
[1769375038712,1.10912075,86893.0,86872.0,0.00990001]
[1769375038913,0.32805464,86890.0,86872.0,0.00990001]
[1769375039291,0.01150814,86895.0,86872.0,0.00990001]
[1769375039292,1.43717539,86914.0,86886.0,0.01150933]
[1769375039523,0.11449923,86913.0,86888.0,0.32137872]
[1769375039694,0.32852594,86914.0,86885.0,0.17692]
[1769375039695,0.01150602,86911.0,86885.0,0.17692]
[1769375039905,1.10912075,86909.0,86885.0,0.17692]
[1769375040132,0.43560223,86910.0,86882.0,0.01150986]
[1769375040133,0.32805464,86905.0,86882.0,0.01150986]
[1769375040269,1.10912075,86904.0,86882.0,0.01150986]
[1769375040464,0.04648,86917.0,86882.0,0.01150986]
[1769375040465,1.10966235,86915.0,86887.0,0.33288792]
[1769375040708,0.01150628,86909.0,86887.0,0.32137872]
[1769375040884,1.10912075,86905.0,86880.0,0.01151012]
[1769375041087,1.12062756,86905.0,86879.0,0.49829872]
[1769375041286,1.10912075,86905.0,86882.0,0.01150986]
[1769375041470,1.10912075,86905.0,86876.0,0.04608]
[1769375041471,0.43560223,86900.0,86876.0,0.05759065]
[1769375041685,1.10912075,86894.0,86876.0,0.04608]
[1769375042072,1.10912075,86884.0,86857.0,0.04608]
[1769375042282,1.10912075,86882.0,86857.0,0.04608]
[1769375042486,0.01151052,86877.0,86857.0,0.04608]
[1769375042736,1.10912075,86882.0,86857.0,0.04608]
[1769375042737,0.01151039,86878.0,86857.0,0.04608]
[1769375042938,0.01151065,86876.0,86857.0,0.04608]
[1769375043142,0.01151052,86877.0,86857.0,0.04608]
[1769375043372,0.36753974,86883.0,86877.0,0.00990001]
[1769375043582,0.36753974,86883.0,86859.0,0.01151291]
[1769375043583,1.53308051,86881.0,86862.0,0.01151251]
[1769375043781,1.16554077,86881.0,86863.0,0.01151238]
[1769375043989,0.18838959,86884.0,86857.0,0.04622139]
[1769375044220,0.01150999,86881.0,86858.0,0.35015512]
[1769375044432,0.01150999,86881.0,86859.0,0.00114317]
[1769375044850,0.01151026,86879.0,86859.0,0.00114317]
[1769375045060,0.01151012,86880.0,86859.0,0.00114317]
[1769375045297,0.17688,86884.0,86859.0,0.01265608]
[1769375045518,0.18838959,86884.0,86861.0,0.01151264]
[1769375045696,0.18838959,86884.0,86862.0,0.00114313]
[1769375046363,1.34242077,86884.0,86865.0,0.01151211]
[1769375046532,1.34242077,86884.0,86865.0,0.0126552]
[1769375046736,0.18838959,86884.0,86865.0,0.00114309]
[1769375046936,1.1770505,86883.0,86865.0,0.00114309]
[1769375047122,1.16554077,86881.0,86865.0,0.00114309]
[1769375047470,0.06906204,86880.0,86860.0,0.00114312]
[1769375047592,1.16554077,86879.0,86862.0,0.01151251]
[1769375047796,1.16554077,86879.0,86862.0,0.0011431]
[1769375048022,1.16554077,86879.0,86862.0,0.01265561]
[1769375048318,1.16554077,86879.0,86864.0,0.01151224]
[1769375048516,1.16554077,86879.0,86863.0,0.01151238]
[1769375048719,1.16554077,86879.0,86862.0,0.01265561]
[1769375048944,1.16554077,86879.0,86862.0,0.0011431]
[1769375049141,1.16554077,86879.0,86861.0,0.01265574]
[1769375049358,1.16554077,86879.0,86861.0,0.0011431]
[1769375049560,0.06903796,86909.0,86883.0,0.01150973]
[1769375049762,0.06903796,86909.0,86882.0,1.05182607]
[1769375049763,0.17684,86903.0,86882.0,1.05182607]
[1769375049938,1.16554077,86902.0,86881.0,0.01150999]
[1769375050157,1.16554077,86902.0,86883.0,0.01150973]
[1769375050326,1.16554077,86902.0,86880.0,0.00139919]
[1769375050526,1.16554077,86902.0,86881.0,0.01150999]
[1769375050970,1.16554077,86902.0,86882.0,0.00139915]
[1769375051302,0.22288,86901.0,86883.0,0.01150973]
[1769375051449,0.22288,86901.0,86884.0,0.00139911]
[1769375051945,0.22288,86901.0,86881.0,0.01290911]
[1769375052171,0.22288,86901.0,86881.0,0.00139912]
[1769375052401,0.22288,86901.0,86872.0,0.01151118]
[1769375052402,0.36753974,86896.0,86876.0,0.01151065]
[1769375052684,0.36753974,86896.0,86872.0,0.3616663]
[1769375052685,0.36801075,86896.0,86872.0,0.3616663]
[1769375052889,0.36801075,86896.0,86874.0,0.01151092]
[1769375053098,1.16554077,86895.0,86873.0,0.01151105]
[1769375053603,1.16554077,86895.0,86840.0,0.43404282]
[1769375053758,1.34238077,86894.0,86870.0,0.36166657]
[1769375053957,1.34238077,86894.0,86864.0,1.06333831]
[1769375053958,1.16554077,86892.0,86864.0,1.06333831]
[1769375054160,1.16554077,86892.0,86861.0,0.01151264]
[1769375054161,0.17684,86894.0,86861.0,0.01151264]
[1769375054162,1.16554077,86883.0,86861.0,0.01151264]
[1769375054358,1.16554077,86881.0,86864.0,0.01151224]
[1769375054565,1.16554077,86881.0,86860.0,0.35015512]
[1769375054566,1.16554077,86881.0,86837.0,0.17684]
[1769375054809,0.22288,86882.0,86683.0,8e-05]
[1769375054810,1.16554077,86873.0,86855.0,0.00024969]
[1769375055036,1.34238077,86872.0,86850.0,0.01176487]
[1769375055304,1.34238077,86872.0,86851.0,0.01151397]
[1769375055510,0.17684,86872.0,86856.0,0.0115133]
[1769375055659,0.17684,86872.0,86857.0,0.00025074]
[1769375056889,0.17684,86872.0,86851.0,0.01151397]
[1769375056890,1.16026603,86871.0,86853.0,0.01176444]
[1769375057288,1.16026603,86871.0,86855.0,0.01151344]
[1769375057504,1.16026603,86871.0,86856.0,0.0115133]
[1769375057703,1.16026603,86871.0,86857.0,0.01176389]
[1769375058134,1.16026603,86871.0,86857.0,0.00025072]
[1769375058515,1.16026603,86871.0,86855.0,0.00025127]
[1769375058718,0.17684,86870.0,86855.0,0.00025127]
[1769375058946,0.17684,86870.0,86853.0,0.00025128]
[1769375059262,0.17684,86870.0,86853.0,0.05781949]
[1769375059467,0.17684,86870.0,86858.0,0.01151304]
[1769375059630,0.17684,86870.0,86859.0,0.00025127]
[1769375061913,0.17684,86870.0,86856.0,0.0115133]
[1769375061914,1.16026603,86869.0,86850.0,0.36166922]
[1769375062073,0.00025127,86859.0,86850.0,0.36166922]
[1769375062239,0.00025127,86859.0,86850.0,0.35015512]
[1769375062440,1.16026603,86867.0,86850.0,0.35015512]
[1769375062859,0.37080786,86866.0,86843.0,0.01151503]
[1769375063070,0.37080786,86862.0,86843.0,0.01165642]
[1769375063365,1.16026603,86861.0,86845.0,0.06908825]
[1769375063563,0.17684,86860.0,86848.0,0.01151436]
[1769375063783,0.17684,86860.0,86845.0,0.01151476]
[1769375064165,0.17684,86860.0,86846.0,0.01151463]
[1769375064367,1.16026603,86859.0,86846.0,0.01151463]
[1769375064595,1.16026603,86859.0,86847.0,0.0115145]
[1769375064811,1.16026603,86859.0,86844.0,0.0115149]
[1769375065018,1.16026603,86859.0,86843.0,0.00014139]
[1769375065174,1.16026603,86857.0,86843.0,0.00014139]
[1769375065379,1.16026603,86856.0,86843.0,0.00014139]
[1769375065592,1.16026603,86854.0,86843.0,0.00014139]
[1769375065795,0.37080786,86853.0,86836.0,0.00113165]
[1769375066009,1.16026603,86850.0,86836.0,0.00113165]
[1769375066193,0.17684,86849.0,86834.0,0.01264787]
[1769375066397,0.17684,86849.0,86837.0,0.01151582]
[1769375066803,0.17684,86849.0,86838.0,0.01151569]
[1769375067029,0.17684,86849.0,86837.0,0.01151582]
[1769375067244,0.17684,86849.0,86836.0,0.01151596]
[1769375067675,0.17684,86849.0,86837.0,0.01151582]
[1769375068120,0.17684,86849.0,86839.0,0.01151556]
[1769375068327,0.17684,86849.0,86840.0,0.01151543]
[1769375068566,0.17684,86849.0,86835.0,0.01151609]
[1769375068989,1.16026603,86848.0,86833.0,0.01265079]
[1769375069208,1.16026603,86848.0,86834.0,0.01151622]
[1769375069422,1.16026603,86848.0,86833.0,0.01151635]
[1769375069652,1.16026603,86848.0,86831.0,0.35427831]
[1769375069867,1.16026603,86846.0,86831.0,0.41186139]
[1769375070112,1.16026603,86844.0,86827.0,0.04604]
[1769375070376,1.16026603,86844.0,86824.0,0.35427831]
[1769375070377,1.16026603,86841.0,86825.0,0.01151742]
[1769375070608,1.33710603,86840.0,86824.0,0.35427831]
[1769375070832,1.33710603,86840.0,86819.0,0.01151821]
[1769375070833,1.16026603,86836.0,86819.0,0.01151821]
[1769375071060,1.16026603,86835.0,86818.0,0.01151834]
[1769375071285,1.16026603,86835.0,86817.0,0.42338914]
[1769375071286,1.16026603,86832.0,86817.0,0.01151848]
[1769375071517,0.17684,86831.0,86816.0,0.01151861]
[1769375071789,0.17684,86831.0,86817.0,0.01151848]
[1769375072029,0.37080786,86830.0,86812.0,0.35427831]
[1769375072236,0.17684,86831.0,86811.0,0.01151927]
[1769375072237,1.16026603,86827.0,86811.0,0.01151927]
[1769375072474,0.37080786,86825.0,86814.0,0.01151887]
[1769375072674,1.16026603,86824.0,86814.0,0.01151887]
[1769375072816,0.17684,86823.0,86814.0,0.01151887]
[1769375073021,0.17684,86823.0,86815.0,0.01151874]
[1769375073456,0.17684,86823.0,86820.0,0.01151808]
[1769375073641,0.17684,86823.0,86816.0,0.01151861]
[1769375073837,0.17684,86823.0,86816.0,0.01165986]
[1769375074037,0.17684,86823.0,86816.0,0.00014125]
[1769375074262,0.17684,86823.0,86816.0,0.01165986]
[1769375074460,0.17688,86822.0,86816.0,0.01165986]
[1769375074709,0.17688,86822.0,86817.0,0.01151848]
[1769375075075,0.17688,86822.0,86816.0,0.01165986]
[1769375075278,0.17688,86822.0,86816.0,0.00014125]
[1769375075484,0.17688,86822.0,86817.0,0.01151848]
[1769375075963,0.17688,86822.0,86816.0,0.00014125]
[1769375077569,0.17688,86822.0,86818.0,0.01151834]
[1769375077768,0.17688,86822.0,86816.0,0.01165986]
[1769375077969,0.17688,86822.0,86819.0,0.01151821]
[1769375078169,0.17688,86822.0,86818.0,0.01151834]
[1769375078373,0.43404282,86840.0,86816.0,0.06925273]
[1769375078374,0.43404282,86850.0,86821.0,0.01151795]
[1769375078575,0.34769913,86848.0,86830.0,1.18773481]
[1769375078800,1.06421811,86847.0,86831.0,0.37753112]
[1769375079009,1.06421811,86847.0,86832.0,0.00092062]
[1769375079218,1.41191724,86847.0,86832.0,0.00092062]
[1769375079439,1.06421811,86846.0,86832.0,0.00092062]
[1769375079620,0.34769913,86845.0,86829.0,0.00092062]
[1769375079847,1.06421811,86843.0,86827.0,0.01243777]
[1769375080002,1.06421811,86843.0,86829.0,0.01151688]
[1769375080200,1.06421811,86843.0,86828.0,0.01151702]
[1769375080201,1.06421811,86843.0,86830.0,0.00092058]
[1769375082163,1.06421811,86843.0,86831.0,0.01151662]
[1769375082368,0.34769913,86844.0,86831.0,0.01151662]
[1769375082617,1.41191724,86844.0,86832.0,0.00092055]
[1769375083529,1.06421811,86858.0,86836.0,0.38904708]
[1769375083734,1.06421811,86855.0,86836.0,0.38904708]
[1769375083863,0.34769913,86853.0,86833.0,0.01151635]
[1769375084054,1.06421811,86850.0,86834.0,0.01151622]
[1769375084264,1.24109811,86849.0,86833.0,0.01151635]
[1769375084475,1.24109811,86849.0,86831.0,0.37753112]
[1769375084476,1.24109811,86849.0,86831.0,0.38904774]
[1769375084874,1.24109811,86849.0,86832.0,0.01151649]
[1769375085333,1.24109811,86849.0,86832.0,0.00115102]
[1769375085960,1.05629565,86849.0,86832.0,0.00115102]
[1769375086160,0.52457913,86850.0,86825.0,0.0001592]
[1769375086161,0.00115102,86832.0,86825.0,0.0001592]
[1769375086447,1.06421811,86831.0,86825.0,0.0001592]
[1769375086681,1.06421811,86831.0,86812.0,1.18774758]
[1769375086682,1.06421811,86831.0,86814.0,0.37753112]
[1769375086889,1.06421811,86824.0,86810.0,0.03536]
[1769375087186,0.0001592,86825.0,86814.0,0.01151887]
[1769375087687,1.06421811,86829.0,86816.0,0.01165986]
[1769375088035,1.06421811,86829.0,86818.0,0.01151834]
[1769375088234,1.06421811,86829.0,86820.0,0.01151808]
[1769375088676,1.06421811,86829.0,86818.0,0.01151834]
[1769375088876,1.06421811,86829.0,86819.0,0.01151821]
[1769375089059,1.06421811,86829.0,86817.0,0.01151848]
[1769375089667,1.06421811,86829.0,86816.0,0.01165986]
[1769375089927,1.06421811,86829.0,86816.0,0.00014125]
[1769375090113,1.06421811,86827.0,86816.0,0.00014125]
[1769375090859,1.06421811,86827.0,86811.0,0.37753112]
[1769375091061,1.06421811,86827.0,86810.0,0.03536]
[1769375091062,1.06421811,86819.0,86810.0,0.03536]
[1769375091360,1.41191724,86819.0,86810.0,0.03536]
[1769375091491,0.34769913,86823.0,86810.0,0.03536]
[1769375091697,0.0116583,86827.0,86810.0,0.03536]
[1769375091698,0.34769913,86821.0,86810.0,0.03536]
[1769375091916,1.06421811,86819.0,86801.0,0.0119114]
[1769375092295,1.06421811,86819.0,86801.0,0.37792192]
[1769375092760,1.06421811,86819.0,86796.0,0.01152126]
[1769375092762,1.06421811,86819.0,86785.0,0.04608]
[1769375092763,0.34769913,86805.0,86785.0,0.04608]
[1769375092971,0.01,86807.0,86785.0,0.04608]
[1769375092972,0.34769913,86802.0,86785.0,0.04608]
[1769375093182,1.06421811,86799.0,86785.0,0.05760272]
[1769375093390,1.06421811,86799.0,86789.0,0.01152219]
[1769375093604,1.06421811,86799.0,86791.0,0.01152193]